fUST/lending_fUST_20250501
["ID","MTS","AMOUNT","RATE_DAILY","PERIOD"]
[359546593,1746101436606,-556.01205123,0.00029286,2]
[359546594,1746101436616,-324.07646216,0.00029286,2]
[359546595,1746101436626,-12104.61855451,0.00029287,2]
[359546596,1746101436643,-12795.38144549,0.00029287,2]
[359546597,1746101436654,-509.41998731,0.000293,5]
[359546598,1746101436664,-205.41560919,0.000299,21]
[359546599,1746101436674,-1000.0,0.00030037,2]
[359546600,1746101436684,-155.0,0.00030137,2]
[359546601,1746101436694,-1827.77122189,0.00030813,2]
[359546602,1746101436704,-205.41560919,0.000309,23]
[359546603,1746101436713,-501.49854421,0.00031282,5]
[359546604,1746101436723,-500.0,0.00031282,5]
[359546605,1746101436732,-500.0,0.00031282,5]
[359546606,1746101436742,-500.0,0.00031282,5]
[359546607,1746101436752,-500.0,0.00031282,5]
[359546608,1746101436762,-500.0,0.00031282,2]
[359546609,1746101436772,-587.0,0.0003154,2]
[359546610,1746101436782,-159154.6363832,0.000318,2]
[359546611,1746101436794,-40845.3636168,0.000318,2]
[359546612,1746101436803,-205.41560919,0.000319,25]
[359546613,1746101436813,-57977.0323451,0.0003198,2]
[359546614,1746101436823,-182.29,0.0003199,3]
[359546615,1746101436833,-546.87,0.0003199,3]
[359546616,1746101436847,-70592.68226649,0.0003199,2]
[359546632,1746101437832,-500.0,0.00029281,2]
[359546633,1746101437847,-30083.98380585,0.0003199,2]
[359546634,1746101437996,-662.68465121,0.0003199,2]
[359546635,1746101438008,-813.06142564,0.0003199,2]
[359546636,1746101438019,-522.71292882,0.0003199,2]
[359546637,1746101438031,-9356.1,0.0003199,2]
[359546638,1746101438050,-12813.3840853,0.0003199,2]
[359546639,1746101438062,-57733.29921137,0.0003199,2]
[359546657,1746101442861,-1135.17479803,0.0003199,2]
[359546660,1746101442915,-48195.04620729,0.0003199,2]
[359546661,1746101442925,-160.0,0.00031991,2]
[359546662,1746101442934,-421.4777418,0.00031991,2]
[359546663,1746101442944,-3815.97700418,0.00031993,2]
[359546690,1746101445798,-382.748628,0.00031993,2]
[359546694,1746101446169,-181.90869711,0.00031993,2]
[359546695,1746101446180,-397.44194169,0.00031993,2]
[359546698,1746101998435,181.20626745,6.8e-07,2]
[359546699,1746101998690,181.20626745,6.8e-07,2]
[359546701,1746102145635,-177.00324184,0.00025894,2]
[359546702,1746102149736,-72.99675816,0.00025894,2]
[359546703,1746102149760,-1059.98080575,0.00025994,2]
[359546704,1746102153300,-140.01919425,0.00025994,2]
[359546705,1746102153324,-1000.0,0.00025995,2]
[359546706,1746102153347,-2521.58080575,0.00025995,2]
[359546707,1746102160391,-537.73383512,0.00025995,2]
[359546708,1746102160415,-22.37722512,0.00026141,2]
[359546709,1746102165108,-277.62277488,0.00026141,2]
[359546710,1746102165135,-300.0,0.00026142,2]
[359546711,1746102165160,-300.0,0.00026143,2]
[359546712,1746102165183,-122.37722512,0.00026146,2]
[359546713,1746102170189,-160.0,0.00026146,2]
[359546714,1746102170213,-3.048207,0.00026146,2]
[359546715,1746102303138,151.0,0.00022,2]
[359546716,1746102335752,-5797.94368871,0.00022,2]
[359546718,1746102470671,-374.72793129,0.000219,2]
[359546719,1746102470804,125.27206871,0.00018,2]
[359546720,1746102470838,1287.81833546,0.00018,2]
[359546721,1746102470872,5000.0,0.00018,2]
[359546722,1746102470900,20348.05899707,0.00018,2]
[359546723,1746102471866,-1130.32343717,0.00018,2]
[359546724,1746102474821,816.49721491,0.00016,2]
[359546725,1746102483342,-250.0,0.00018,2]
[359546726,1746102487783,-283.90461392,0.00018,2]
[359546727,1746102495474,-248.68227177,0.00018,2]
[359546728,1746102495930,1011.77256538,0.000125,2]
[359546729,1746102498501,-152.98336857,0.00018,2]
[359546730,1746102501936,-326.8652195,0.00018,2]
[359546731,1746102504899,-269.4918856,0.00018,2]
[359546732,1746102505375,583.02523533,0.000176,2]
[359546733,1746102507328,-300.0,0.00018,2]
[359546734,1746102510095,-320.1901891,0.00018,2]
[359546735,1746102515508,664.35380519,0.00017,2]
[359546736,1746102515651,500.0,0.00017999,2]
[359546737,1746102515684,500.0,0.00017999,2]
[359546738,1746102515715,500.0,0.00017999,2]
[359546739,1746102515751,1101.83145542,0.00017999,2]
[359546740,1746102515783,500.0,0.00017999,2]
[359546741,1746102515818,500.0,0.00017999,2]
[359546742,1746102515849,637.40428315,0.00017999,2]
[359546743,1746102515883,1101.83145542,0.00017999,2]
[359546744,1746102515921,500.0,0.00017999,2]
[359546745,1746102515960,1101.83145542,0.00017999,2]
[359546746,1746102515992,500.0,0.00017999,2]
[359546747,1746102516023,500.0,0.00017999,2]
[359546748,1746102516063,1101.83145542,0.00017999,2]
[359546749,1746102516104,300.0,0.00017999,2]
[359546750,1746102516136,500.0,0.00017999,2]
[359546751,1746102516172,1101.83145542,0.00017999,2]
[359546752,1746102516213,500.0,0.00017999,2]
[359546753,1746102516250,1101.83145542,0.00017999,2]
[359546754,1746102516293,1101.83145542,0.00017999,2]
[359546755,1746102516328,638.41382424,0.00017999,2]
[359546756,1746102516363,1101.83145542,0.00017999,2]
[359546757,1746102516404,1101.83145542,0.00017999,2]
[359546758,1746102516476,1101.83145542,0.00017999,2]
[359546759,1746102516510,1101.83145542,0.00017999,2]
[359546760,1746102516548,1101.83145542,0.00017999,2]
[359546761,1746102516581,1101.83145542,0.00017999,2]
[359546762,1746102516623,1101.83145542,0.00017999,2]
[359546763,1746102516662,1101.83145542,0.00017999,2]
[359546764,1746102516698,1101.83145542,0.00017999,2]
[359546765,1746102516734,1101.83145542,0.00017999,2]
[359546766,1746102516771,1101.83145542,0.00017999,2]
[359546767,1746102516808,1101.83145542,0.00017999,2]
[359546768,1746102516842,1101.83145542,0.00017999,2]
[359546769,1746102516901,1101.83145542,0.00017999,2]
[359546770,1746102516990,1101.83145542,0.00017999,2]
[359546771,1746102517024,1101.83145542,0.00017999,2]
[359546772,1746102517059,1101.83145542,0.00017999,2]
[359546773,1746102517093,1101.83145542,0.00017999,2]
[359546774,1746102517131,1101.83145542,0.00017999,2]
[359546775,1746102517167,1101.83145542,0.00017999,2]
[359546776,1746102517201,1101.83145542,0.00017999,2]
[359546777,1746102517239,1101.83145542,0.00017999,2]
[359546778,1746102517280,1101.83145542,0.00017999,2]
[359546779,1746102517314,1101.83145542,0.00017999,2]
[359546780,1746102517350,1101.83145542,0.00017999,2]
[359546781,1746102517383,1101.83145542,0.00017999,2]
[359546782,1746102517416,1101.83145542,0.00017999,2]
[359546783,1746102517449,1101.83145542,0.00017999,2]
[359546784,1746102517483,1101.83145542,0.00017999,2]
[359546785,1746102517519,1101.83145542,0.00017999,2]
[359546786,1746102517554,1101.83145542,0.00017999,2]
[359546787,1746102517588,1101.83145542,0.00017999,2]
[359546788,1746102517620,-354.41296874,0.00018,2]
[359546789,1746102517655,1101.83145542,0.00017999,2]
[359546790,1746102517688,1101.83145542,0.00017999,2]
[359546791,1746102517729,1101.83145542,0.00017999,2]
[359546792,1746102517762,1101.83145542,0.00017999,2]
[359546793,1746102517796,1101.83145542,0.00017999,2]
[359546794,1746102517834,1101.83145542,0.00017999,2]
[359546795,1746102517877,1101.83145542,0.00017999,2]
[359546796,1746102517915,1101.83145542,0.00017999,2]
[359546797,1746102517949,1101.83145542,0.00017999,2]
[359546798,1746102517983,1101.83145542,0.00017999,2]
[359546799,1746102518017,1101.83145542,0.00017999,2]
[359546800,1746102518053,1101.83145542,0.00017999,2]
[359546801,1746102518145,1101.83145542,0.00017999,2]
[359546802,1746102518227,1101.83145542,0.00017999,2]
[359546803,1746102518271,1101.83145542,0.00017999,2]
[359546804,1746102518310,1101.83145542,0.00017999,2]
[359546805,1746102518346,1101.83145542,0.00017999,2]
[359546806,1746102518388,1101.83145542,0.00017999,2]
[359546807,1746102518421,1101.83145542,0.00017999,2]
[359546808,1746102518456,1101.83145542,0.00017999,2]
[359546809,1746102520174,-243.22389783,0.00018,2]
[359546810,1746102524631,153.0801499,0.000168,2]
[359546811,1746102525544,-150.0,0.00018,2]
[359546812,1746102529756,-171.78858389,0.00018,2]
[359546813,1746102535371,-178.13892656,0.00018,2]
[359546814,1746102539324,-45549.0,0.00018,2]
[359546815,1746102543190,-61.73578434,0.00018,2]
[359546816,1746102543214,-99.98310159,0.00019706,2]
[359546817,1746102546151,-171.90065422,0.00019706,2]
[359546818,1746102549596,-33.5795495,0.00019706,2]
[359546819,1746102549617,-269.59475461,0.0002,2]
[359546820,1746102553155,-205.9467732,0.0002,2]
[359546821,1746102554827,-161.19478468,0.0002,2]
[359546822,1746102559511,-252.32384414,0.0002,2]
[359546823,1746102562788,500.0,0.00017999,2]
[359546824,1746102562824,1271.34398702,0.00017999,2]
[359546825,1746102562904,500.0,0.00017999,2]
[359546826,1746102562990,500.0,0.00017999,2]
[359546827,1746102563019,500.0,0.00017999,2]
[359546828,1746102563056,500.0,0.00017999,2]
[359546829,1746102563125,1271.34398702,0.00017999,2]
[359546830,1746102563259,650.0,0.00017999,2]
[359546831,1746102563582,1271.34398702,0.00017999,2]
[359546832,1746102563612,-445.95286266,0.0002,2]
[359546833,1746102564452,1271.34398702,0.00017999,2]
[359546834,1746102564799,1271.34398702,0.00017999,2]
[359546835,1746102564886,1271.34398702,0.00017999,2]
[359546836,1746102564925,1271.34398702,0.00017999,2]
[359546837,1746102564959,1271.34398702,0.00017999,2]
[359546838,1746102564993,1271.34398702,0.00017999,2]
[359546839,1746102565034,1271.34398702,0.00017999,2]
[359546840,1746102565070,1271.34398702,0.00017999,2]
[359546841,1746102565107,1271.34398702,0.00017999,2]
[359546842,1746102565140,1271.34398702,0.00017999,2]
[359546843,1746102565179,1271.34398702,0.00017999,2]
[359546844,1746102565213,1271.34398702,0.00017999,2]
[359546845,1746102565250,1271.34398702,0.00017999,2]
[359546846,1746102565285,1271.34398702,0.00017999,2]
[359546847,1746102565318,1271.34398702,0.00017999,2]
[359546848,1746102565358,1271.34398702,0.00017999,2]
[359546849,1746102565392,1271.34398702,0.00017999,2]
[359546850,1746102565782,1271.34398702,0.00017999,2]
[359546851,1746102565816,1271.34398702,0.00017999,2]
[359546852,1746102565852,1271.34398702,0.00017999,2]
[359546853,1746102565885,1271.34398702,0.00017999,2]
[359546854,1746102565920,1271.34398702,0.00017999,2]
[359546855,1746102565954,1271.34398702,0.00017999,2]
[359546856,1746102565992,1271.34398702,0.00017999,2]
[359546857,1746102566039,1271.34398702,0.00017999,2]
[359546858,1746102566080,1271.34398702,0.00017999,2]
[359546859,1746102566114,1271.34398702,0.00017999,2]
[359546860,1746102566148,1271.34398702,0.00017999,2]
[359546861,1746102566189,1271.34398702,0.00017999,2]
[359546862,1746102566221,1271.34398702,0.00017999,2]
[359546863,1746102566255,1271.34398702,0.00017999,2]
[359546864,1746102566295,1271.34398702,0.00017999,2]
[359546865,1746102566329,1271.34398702,0.00017999,2]
[359546866,1746102566361,1271.34398702,0.00017999,2]
[359546867,1746102566394,1271.34398702,0.00017999,2]
[359546868,1746102566432,1271.34398702,0.00017999,2]
[359546869,1746102568586,-250.0,0.0002,2]
[359546870,1746102572225,-321.53525886,0.0002,2]
[359546871,1746102574747,-260.47152956,0.0002,2]
[359546872,1746102576563,680.32631403,0.00017999,2]
[359546873,1746102580433,-302.28317348,0.0002,2]
[359546874,1746102583122,20000.0,0.00025,30]
[359546875,1746102583482,-282.77066544,0.0002,2]
[359546876,1746102590105,-234.91858924,0.0002,2]
[359546884,1746102594187,-348.20291111,0.0002,2]
[359546885,1746102600574,-61.30075291,0.0002,2]
[359546886,1746102600600,-160.0,0.0002,2]
[359546887,1746102600626,-59.48977497,0.000209,2]
[359546888,1746102604006,-191.34558224,0.00021,2]
[359546889,1746102608366,-349.46733728,0.00021,2]
[359546890,1746102611519,-341.12846608,0.00021,2]
[359546891,1746102616285,-118.64917527,0.00021,2]
[359546892,1746102617343,58.07911519,0.00017999,2]
[359546893,1746102617378,142.40450303,0.00017999,2]
[359546900,1746102631884,-292.22084839,0.00022,2]
[359546901,1746102631896,-546.50562813,0.00022,2]
[359546902,1746102631945,-420.49297841,0.00022,2]
[359546903,1746102631957,-7199.11823099,0.00022,2]
[359546904,1746102631967,-250.0,0.00022447,2]
[359546905,1746102631977,-151.47300818,0.000229,2]
[359546906,1746102631986,-631.59889965,0.00023,2]
[359546907,1746102631996,-320.1901891,0.00024321,2]
[359546908,1746102632006,-300.0,0.00024998,2]
[359546909,1746102632016,-1200.0,0.00024999,2]
[359546910,1746102632026,-4064.92068794,0.00025,2]
[359546912,1746102632036,-209.27164967,0.00025,12]
[359546914,1746102632045,-209.2716496,0.00025,12]
[359546916,1746102632055,-209.2716496,0.00025,12]
[359546918,1746102632064,-209.2716496,0.00025,12]
[359546919,1746102632075,-50000.0,0.00025,2]
[359546920,1746102632084,-300.0,0.00025204,2]
[359546921,1746102632094,-300.0,0.00025204,2]
[359546922,1746102632104,-300.0,0.00025204,2]
[359546923,1746102632114,-300.0,0.00025204,2]
[359546925,1746102632124,-206.41212574,0.00025478,2]
[359546927,1746102632134,-500.0,0.00025478,2]
[359546928,1746102632144,-500.42188411,0.00025478,2]
[359546929,1746102632154,-1000.0,0.00026045,2]
[359546931,1746102632164,-160.0,0.00026282,2]
[359546933,1746102632173,-1370.82841647,0.00026295,2]
[359546935,1746102632183,-209.2716496,0.00026362,15]
[359546937,1746102632192,-279.13253945,0.00026362,2]
[359546939,1746102632211,-220.86746055,0.00026362,2]
[359546941,1746102632225,-389.20843586,0.00026362,2]
[359546943,1746102632235,-176.98902179,0.00026362,2]
[359546944,1746102632245,-59.5203515,0.00026363,2]
[359546994,1746102638066,-317.73439499,0.00025203,2]
[359546996,1746102638078,-232.26560501,0.00025203,2]
[359546998,1746102638087,-348.71264714,0.00025203,2]
[359547000,1746102638097,-500.0,0.00025203,2]
[359547002,1746102638106,-500.0,0.00025203,2]
[359547004,1746102638116,-500.0,0.00025203,2]
[359547006,1746102638127,-500.0,0.00025203,2]
[359547009,1746102638137,-500.0,0.00025203,2]
[359547010,1746102638146,-500.0,0.00025203,2]
[359547012,1746102638155,-500.0,0.00025203,2]
[359547014,1746102638164,-500.0,0.00025203,2]
[359547016,1746102638174,-500.0,0.00025203,2]
[359547018,1746102638184,-500.0,0.00025203,2]
[359547019,1746102638193,-500.0,0.00025203,2]
[359547021,1746102638203,-500.0,0.00025203,2]
[359547024,1746102638215,-500.0,0.00025203,2]
[359547028,1746102638229,-416.48309876,0.00025203,2]
[359547030,1746102638240,-500.0,0.00025203,2]
[359547033,1746102638250,-500.0,0.00025203,2]
[359547034,1746102638259,-500.0,0.00025203,2]
[359547036,1746102638268,-25.11639794,0.00025203,2]
[359547038,1746102638280,-474.88360206,0.00025203,2]
[359547039,1746102638290,-500.0,0.00025203,2]
[359547040,1746102638301,-500.0,0.00025203,2]
[359547041,1746102638311,-23979.44610796,0.00026363,2]
[359547050,1746102638398,-286.97427163,0.00026363,2]
[359547053,1746102638409,-1366.34904411,0.00026363,2]
[359547056,1746102638428,-17790.4844836,0.00026363,2]
[359547057,1746102638438,-473.89231525,0.00026382,2]
[359547059,1746102638447,-272.44590511,0.00026382,2]
[359547061,1746102638458,-23649.34650457,0.00026383,2]
[359547063,1746102638470,-5000.0,0.00026383,2]
[359547064,1746102638482,-480.51426054,0.00026383,2]
[359547065,1746102638493,-57835.68775249,0.00026383,2]
[359547066,1746102638503,-364.58,0.00026385,3]
[359547067,1746102638512,-160.0,0.00026405,2]
[359547068,1746102638522,-421.4777418,0.00026405,2]
[359547069,1746102638532,-43482.7742588,0.00026408,2]
[359547070,1746102638541,-24900.0,0.00026418,2]
[359547071,1746102638551,-500.0,0.00026473,2]
[359547072,1746102638560,-500.0,0.00026473,2]
[359547073,1746102638570,-500.0,0.000265,2]
[359547074,1746102638579,-500.0,0.00026867,2]
[359547075,1746102638589,-609.45395864,0.00026867,2]
[359547076,1746102638598,-500.0,0.00026867,2]
[359547077,1746102638608,-507.49178017,0.00026867,2]
[359547078,1746102638618,-500.0,0.00026867,2]
[359547079,1746102638627,-500.0,0.00026867,2]
[359547080,1746102638637,-500.46298553,0.00026867,2]
[359547081,1746102638646,-500.0,0.00026867,2]
[359547082,1746102638656,-500.0,0.00026867,2]
[359547083,1746102638666,-500.0,0.00026867,2]
[359547084,1746102638676,-500.0,0.00026867,2]
[359547085,1746102638686,-500.0,0.00026867,2]
[359547086,1746102638696,-500.0,0.00026867,2]
[359547087,1746102638707,-300.0,0.00026867,2]
[359547088,1746102638716,-500.0,0.00026867,2]
[359547089,1746102638726,-503.30892032,0.00026867,2]
[359547090,1746102638735,-500.42441715,0.00026867,2]
[359547091,1746102638745,-160.55894383,0.00026867,2]
[359547092,1746102638754,-313.5174939,0.00027,3]
[359547093,1746102638764,-313.5174939,0.00027,3]
[359547094,1746102638773,-188.2854801,0.00027007,2]
[359547095,1746102638783,-420.0,0.00027081,2]
[359547096,1746102638792,-1680.0,0.00027205,2]
[359547097,1746102638802,-300.0,0.00027299,2]
[359547098,1746102638811,-220.0,0.00027299,2]
[359547099,1746102638821,-420.0,0.00027299,2]
[359547100,1746102638830,-420.0,0.00027299,2]
[359547101,1746102638840,-973.326753,0.00027397,2]
[359547102,1746102638849,-623.2087604,0.00027879,5]
[359547103,1746102638859,-500.0,0.00027956,5]
[359547104,1746102638868,-500.0,0.00027956,5]
[359547105,1746102638878,-209.2716496,0.00027977,18]
[359547106,1746102638887,-421.4777418,0.00028,3]
[359547107,1746102638897,-204.22186963,0.000282,5]
[359547108,1746102638906,-500.0,0.000282,5]
[359547109,1746102638916,-500.0,0.000282,5]
[359547110,1746102638926,-500.83280941,0.000282,2]
[359547111,1746102638935,-500.0,0.000282,5]
[359547112,1746102638946,-500.0,0.000282,5]
[359547113,1746102638957,-500.0,0.000282,2]
[359547114,1746102638967,-500.0,0.000282,5]
[359547115,1746102638977,-1370.82841641,0.00028336,2]
[359547116,1746102638986,-600.0,0.00028511,5]
[359547117,1746102638998,-1836.41307603,0.0002899,2]
[359547118,1746102639008,-151.0,0.00029,18]
[359547119,1746102639017,-11561.82060749,0.000291,3]
[359547120,1746102639028,-841.10298755,0.000291,3]
[359547121,1746102639038,-12595.7684382,0.000291,3]
[359547122,1746102639048,-160.0,0.000291,3]
[359547123,1746102639059,-160.0,0.000291,3]
[359547124,1746102639068,-421.4777418,0.000291,3]
[359547125,1746102639077,-500.0,0.00029173,5]
[359547126,1746102639086,-86965.5485176,0.0002918,2]
[359547127,1746102639095,-43482.7742588,0.0002919,2]
[359547128,1746102639105,-56292.54706434,0.000292,2]
[359547129,1746102639114,-200000.0,0.000292,2]
[359547130,1746102639123,-8694.20910807,0.0002926,3]
[359547131,1746102639132,-200000.0,0.0002926,2]
[359547132,1746102639142,-151.0,0.0002926,7]
[359547133,1746102639152,-151.0,0.0002926,7]
[359547134,1746102639161,-151.0,0.0002926,7]
[359547135,1746102639170,-151.0,0.0002926,7]
[359547136,1746102639180,-151.0,0.0002926,7]
[359547137,1746102639189,-151.0,0.0002926,7]
[359547138,1746102639199,-151.0,0.0002926,7]
[359547139,1746102639211,-151.0,0.0002926,7]
[359547140,1746102639222,-173.643399,0.0002926,7]
[359547141,1746102639231,-391.373793,0.0002926,7]
[359547142,1746102639241,-173.643399,0.0002926,7]
[359547143,1746102639251,-391.373793,0.0002926,7]
[359547144,1746102639261,-500.0,0.00029273,5]
[359547145,1746102639271,-500.0,0.00029273,5]
[359547146,1746102639280,-500.0,0.00029273,5]
[359547147,1746102639290,-587.0,0.00029567,2]
[359547148,1746102639301,-209.2716496,0.00029592,21]
[359547149,1746102639312,-2351.0,0.00029605,2]
[359547150,1746102639322,-156.0,0.0003,2]
[359547151,1746102639331,-5000.0,0.00030007,2]
[359547152,1746102639340,-155.0,0.00030137,2]
[359547153,1746102639350,-900.0,0.00030154,5]
[359547154,1746102639360,-1370.82841641,0.00030376,2]
[359547155,1746102639370,-2264.49204216,0.00030765,2]
[359547156,1746102639379,-510.93041603,0.00030957,5]
[359547158,1746102639389,-209.2716496,0.00031208,24]
[359547160,1746102639398,-151.0,0.0003173,7]
[359547161,1746102639408,-240.959138,0.0003173,7]
[359547162,1746102639416,-707.0,0.0003173,2]
[359547163,1746102639425,-2245.0,0.0003173,2]
[359547164,1746102639435,-403.0,0.0003173,2]
[359547165,1746102639444,-403.0,0.0003173,2]
[359547166,1746102639456,-1200.0,0.00031798,5]
[359547167,1746102639465,-199.97334055,0.00031893,2]
[359547168,1746102639475,-52207.0,0.000319,2]
[359547169,1746102639484,-151.0,0.000319,7]
[359547171,1746102639494,-151.0,0.000319,7]
[359547172,1746102639504,-207.690292,0.000319,7]
[359547173,1746102639514,-207.690292,0.000319,7]
[359547174,1746102639523,-12595.7684382,0.00031932,2]
[359547175,1746102639533,-182.07995741,0.00031932,2]
[359547176,1746102639543,-160.0,0.00031932,2]
[359547177,1746102639553,-841.10298755,0.00031938,2]
[359547178,1746102639563,-1000.0,0.00031952,5]
[359547179,1746102639572,-879411.25181829,0.0003199,10]
[359547187,1746102640856,-0.00780847,0.0003199,10]
[359547195,1746102643021,-962.60610156,0.0003199,10]
[359547224,1746102646175,-121.85257656,0.0003199,10]
[359547227,1746102654226,-184.73997491,0.000209,2]
[359547228,1746102656966,-65.26002509,0.000209,2]
[359547229,1746102744846,-250.0,0.000209,2]
[359547231,1746102955901,-1398.0,0.00022,2]
[359547358,1746103594929,370.51282535,0.000199,2]
[359547359,1746103601139,-188.32279961,0.00022,2]
[359547424,1746103832104,-542.78999999,0.00022,2]
[359547426,1746103832159,-6.46939838,0.00022,2]
[359547427,1746103832169,-328.2308609,0.00022677,2]
[359547428,1746103832179,-225.195366,0.00022767,2]
[359547429,1746103832189,-193.41816,0.00022888,2]
[359547430,1746103832200,-162.2624692,0.00023435,2]
[359547431,1746103832210,-1200.0,0.00023712,2]
[359547432,1746103832219,-300.0,0.00023713,2]
[359547433,1746103832229,-300.0,0.00023713,2]
[359547434,1746103832239,-601.83145542,0.00023713,2]
[359547435,1746103832250,-500.0,0.00023713,2]
[359547436,1746103832260,-16076.1532682,0.00023714,2]
[359547437,1746103832270,-937.71668327,0.00023775,2]
[359547438,1746103832282,-47426.42892961,0.00023775,2]
[359547439,1746103838281,-1635.85438712,0.00023775,2]
[359547440,1746103838291,-772.5570649,0.00023775,2]
[359547441,1746103838301,-331.72462068,0.0002435,2]
[359547442,1746103838311,-190.71213357,0.0002435,2]
[359547443,1746103838320,-889.94410545,0.00024351,2]
[359547508,1746103840545,-333.0,0.00024351,2]
[359547521,1746103840653,-7235.99999996,0.00024351,2]
[359547798,1746103843332,-1804.39833891,0.00024351,2]
[359548385,1746104105107,151.0,0.00018585,2]
[359548386,1746104106206,174.55357062,0.00019954,2]
[359548387,1746104237092,-1000.0,0.00022151,2]
[359548388,1746104237117,-250.0,0.00022151,2]
[359548389,1746104237138,-247.00855023,0.00022251,2]
[359548390,1746104237159,-861.99144977,0.00022363,2]
[359548393,1746104803079,-164.67236682,0.00020263,2]
[359548410,1746105031271,-279.47057772,0.00020953,2]
[359548415,1746105032609,-256.99984178,0.00020953,2]
[359548416,1746105032619,-159.5150221,0.00021146,2]
[359548417,1746105032629,-225.195366,0.00021287,2]
[359548418,1746105032638,-4504.5233907,0.00021447,2]
[359548419,1746105032648,-280.79052788,0.00021519,2]
[359548432,1746105033052,-391.61353086,0.00021519,2]
[359548433,1746105033081,-309.5008986,0.00021619,2]
[359548434,1746105033096,-183.032496,0.00021709,2]
[359548435,1746105033107,-1200.0,0.0002205,2]
[359548436,1746105033117,-1000.0,0.00022051,2]
[359548437,1746105033128,-250.0,0.00022051,2]
[359548438,1746105033138,-300.0,0.00022362,2]
[359548439,1746105033148,-872.00359216,0.00022363,2]
[359548440,1746105033166,-30868.96870431,0.00022363,2]
[359548441,1746105033176,-496.87690763,0.00022363,2]
[359548442,1746105033185,-700.0,0.000225,2]
[359548443,1746105033195,-856.7677603,0.00022603,2]
[359548444,1746105033205,-232.20723448,0.00022702,2]
[359548445,1746105033215,-4347.10455404,0.00022703,3]
[359548446,1746105033224,-321.28557949,0.00022711,2]
[359548458,1746105038356,-500.0,0.00022362,2]
[359548459,1746105038367,-500.0,0.00022362,2]
[359548460,1746105038377,-500.0,0.00022362,2]
[359548462,1746105038387,-500.0,0.00022362,2]
[359548464,1746105038396,-500.0,0.00022362,2]
[359548466,1746105038406,-500.0,0.00022362,2]
[359548468,1746105038415,-500.0,0.00022362,2]
[359548470,1746105038425,-500.0,0.00022362,2]
[359548472,1746105038434,-500.0,0.00022362,2]
[359548473,1746105038445,-500.0,0.00022362,2]
[359548474,1746105038455,-500.0,0.00022362,2]
[359548475,1746105038465,-500.0,0.00022362,2]
[359548476,1746105038474,-500.0,0.00022362,2]
[359548477,1746105038484,-343.33237407,0.00022362,2]
[359548478,1746105038500,-156.66762593,0.00022362,2]
[359548479,1746105038514,-500.0,0.00022362,2]
[359548480,1746105038526,-500.0,0.00022362,2]
[359548481,1746105038535,-500.0,0.00022362,2]
[359548482,1746105038545,-500.0,0.00022362,2]
[359548483,1746105038554,-493.47624741,0.00022362,2]
[359548543,1746105040635,-1000.0,0.00021187,2]
[359548546,1746105040645,-178.71646532,0.00022262,2]
[359548548,1746105040654,-6.52375259,0.00022362,2]
[359548550,1746105040664,-500.0,0.00022362,2]
[359548552,1746105040674,-500.0,0.00022362,2]
[359548554,1746105040683,-500.0,0.00022362,2]
[359548556,1746105040693,-500.0,0.00022362,2]
[359548558,1746105040702,-500.0,0.00022362,2]
[359548560,1746105040712,-500.0,0.00022362,2]
[359548562,1746105040721,-500.0,0.00022362,2]
[359548564,1746105040730,-500.0,0.00022362,2]
[359548566,1746105040740,-500.0,0.00022362,2]
[359548568,1746105040749,-500.0,0.00022362,2]
[359548570,1746105040759,-500.0,0.00022362,2]
[359548572,1746105040768,-558.26879473,0.00022362,2]
[359548574,1746105040778,-500.0,0.00022362,2]
[359548577,1746105040787,-500.0,0.00022362,2]